[Event "44th Chess Olympiad Women 2022"]
[Site "Chennai"]
[Date "2022.07.29"]
[Round "1.37"]
[White "La Fleur, Zara"]
[Black "Newrkla, Katharina"]
[Result "0-1"]
[ECO "B92"]
[WhiteElo "1513"]
[BlackElo "2265"]
[Annotator "TA"]
[PlyCount "148"]
[EventDate "2022.07.29"]
[EventType "team-tourn"]
[EventCountry "IND"]
[SourceTitle "playchess.com"]
[Source "ChessBase"]
[SourceQuality "1"]
[WhiteTeam "TTO"]
[BlackTeam "Austria"]
[BlackTeamCountry "AUT"]
[TimeControl "40/5400+30:1800+30"]

{[%evp 25,147,0,0,-29,25,27,20,31,35,27,35,7,7,-136,-129,-127,-129,-144,-141,-130,-131,-142,-140,-135,-98,-179,-139,-177,-143,-145,-155,-181,-179,-201,-202,-210,-191,-179,-192,-214,-197,-197,-197,-197,-197,-197,-197,-172,-45,-190,-190,-190,-190,-190,-190,-204,0,-187,-162,-170,-132,-1300,-1255,-1253,-1234,-1143,-1042,-29971,-29972,-29973,-29974,-29974,-29975,-29975,-29976,-29976,-29976,-29976,-29977,-29978,-29979,-29979,-29980,-29980,-29981,-29981,-29981,-29978,-29981,-29981,-29979,-29979,-29980,-29980,-29981,-29981,-29982,-29984,-29982,-29983,-29984,-29984,-29985,-29986,-29987,-29987,-29988,-29989,-29989,-29991,-29992,-29993,-29994,-29994,-29995,-29995,-29995,-29996,-29996,-29997,-29998,-29998,-29999,-29999]} 1. e4 {[%emt 0:00:05]} c5 {[%emt 0:00:05]} 2. Nf3 {[%emt 0:00:10]} d6 {[%emt 0:00:05]} 3. d4 {[%emt 0:00:13]} cxd4 {[%emt 0:00:05]} 4. Nxd4 {[%emt 0:00:20]} Nf6 {[%emt 0:00:06]} 5. Nc3 {[%emt 0:00:30]} a6 {[%emt 0:00:05]} 6. Be2 {[%emt 0:02:20]} e5 {[%emt 0:00:11]} 7. Nb3 {[%emt 0:01:03]} Be7 {[%emt 0:00:07]} 8. Be3 {[%emt 0:01:25]} Be6 {[%emt 0:00:07]} 9. O-O {[%emt 0:01:07]} O-O {[%emt 0:00:13]} 10. f3 {[%emt 0:08:02]} Nbd7 {[%emt 0:06:24]} 11. a4 {[%emt 0:12:46]} Rc8 {[%emt 0:06:02]} 12. a5 {[%emt 0:04:46]} Qc7 {[%emt 0:00:45]} 13. Qd2 {[%emt 0:04:19]} Rfd8 {[%emt 0:08:25][%cal Od6d5]} 14. Rfc1 {[%emt 0:15:49] B92: Sicilian Najdorf: 6 Be2.} Nc5 {[%emt 0:09:06]} (14... Qc6 $142) 15. Nxc5 $11 {[%emt 0:01:42]} dxc5 {[%emt 0:00:06]} 16. Qe1 {[%emt 0:00:44] The position is equal.} c4 {[%emt 0:07:03]} 17. Kh1 {[%emt 0:11:56] [#]} Bc5 $146 {[%emt 0:11:54] Prevents Bb6.} ({Predecessor:} 17... Qc6 18. Bb6 Rd7 19. Na4 Re8 20. b4 Rd6 21. Bc5 Rdd8 22. Bxe7 Rxe7 23. Nc5 h6 {½-½ (88) Richter,M (2003)-Zill,E (2184) GER email 2008}) 18. Bf1 {[%emt 0:04:57]} h6 {[%emt 0:04:46]} 19. Na4 {[%emt 0:06:14]} (19. Bxc5 $11 Qxc5 20. Na4) 19... Bxe3 $17 {[%emt 0:03:36] Black is much more active.} 20. Qxe3 {[%emt 0:00:44]} Qxa5 {[%emt 0:05:08]} 21. Nb6 {[%emt 0:09:18]} Qc5 {[%emt 0:00:14]} 22. Qxc5 {[%emt 0:01:16]} Rxc5 {[%emt 0:00:06]} 23. Rd1 {[%emt 0:00:42]} Rxd1 {[%emt 0:08:24]} 24. Rxd1 {[%emt 0:00:11]} g5 {[%emt 0:06:36]} 25. h3 {[%emt 0:03:04]} (25. Rd8+ $17 Kg7 26. Kg1) 25... h5 {[%emt 0:01:55]} 26. g4 {[%emt 0:04:05]} Kg7 {[%emt 0:03:34]} ({Weaker is} 26... hxg4 27. Rd8+ Kg7 28. hxg4 $17) 27. Kg2 {[%emt 0:00:47]} h4 {[%emt 0:02:29]} 28. Kf2 {[%emt 0:01:53]} Rc6 {[%emt 0:05:34]} 29. Nd5 {[%emt 0:01:33]} Bxd5 {[%emt 0:02:45]} 30. exd5 $19 {[%emt 0:00:07][%mdl 4096] Endgame KRB-KRN} Rc8 {[%emt 0:00:19]} 31. d6 {[%emt 0:01:33]} b5 {[%emt 0:02:20]} 32. Ke3 {[%emt 0:01:12]} Kf8 {[%emt 0:03:54]} 33. d7 {[%emt 0:00:40]} Rd8 {[%emt 0:00:20]} 34. Rd6 {[%emt 0:00:18]} Ke7 {[%emt 0:01:30]} (34... Nxd7 35. Rxa6 Rc8 36. Kd2 $17) 35. Rxa6 {[%emt 0:00:08]} Rxd7 {[%emt 0:00:13]} 36. Ra5 {[%emt 0:00:39] [#]} Rb7 {[%emt 0:02:00]} ({Black should try} 36... Nd5+ $1 $19 37. Ke2 (37. Ke4 $2 Nf4 $19) 37... Rb7) 37. c3 {[%emt 0:01:50]} ({Better is} 37. b3 $1 $15) 37... Rb6 {[%emt 0:00:44]} 38. Ra7+ {[%emt 0:00:16]} Ke6 {[%emt 0:00:31]} 39. Ra5 {[%emt 0:00:27]} Nd5+ {[%emt 0:01:00]} 40. Ke4 {[%emt 0:00:20][%cal Of1c4]} Nf6+ {[%emt 0:00:42]} 41. Ke3 {[%emt 0:30:09]} Ne8 {[%emt 0:30:31]} 42. b3 {[%emt 0:01:17]} cxb3 {[%emt 0:00:55]} 43. Rxb5 $2 {[%emt 0:00:11][%mdl 8192]} (43. Ra3 $17) 43... Rxb5 {[%emt 0:00:00]} 44. Bxb5 {[%emt 0:00:00] KB-KN} Nd6 {[%emt 0:00:00]} 45. Bd3 {[%emt 0:00:00]} Kd5 {[%emt 0:00:00] [#] ( -> ...Nc4+)} 46. Ke2 {[%emt 0:00:00]} Nc4 {[%emt 0:00:00] Black mates.} 47. Be4+ {[%emt 0:00:00]} Kc5 {[%emt 0:00:00]} 48. Kd1 {[%emt 0:00:00]} Na3 {[%emt 0:00:00]} 49. Kc1 {[%emt 0:00:00]} Kc4 {[%emt 0:00:00]} ({Not} 49... Nc4 50. Bd3 $17) 50. Kb2 {[%emt 0:00:00]} Nb5 {[%emt 0:00:00]} 51. Bb7 {[%emt 0:02:20]} Nxc3 {[%emt 0:00:00]} 52. Ba6+ {[%emt 0:00:34]} Kb4 {[%emt 0:00:00]} 53. Kc1 {[%emt 0:01:41]} Ka3 {[%emt 0:00:00]} 54. Bd3 {[%emt 0:00:57]} b2+ {[%emt 0:00:00]} 55. Kd2 {[%emt 0:00:30]} Kb4 {[%emt 0:00:00]} 56. Ke3 {[%emt 0:00:37]} Kc5 {[%emt 0:00:00]} 57. Bc2 {[%emt 0:00:35]} Kd5 {[%emt 0:00:00]} 58. Bb3+ {[%emt 0:00:25]} Kd6 {[%emt 0:00:00]} 59. Bc2 {[%emt 0:00:33]} b1=Q {[%emt 0:00:00]} 60. Bxb1 {[%emt 0:00:00]} Nxb1 {[%emt 0:00:00] KN-K3P} 61. Ke4 {[%emt 0:00:15]} Ke6 {[%emt 0:00:00]} 62. Ke3 {[%emt 0:00:38]} Nc3 {[%emt 0:00:00]} 63. Kf2 {[%emt 0:00:28]} Nd5 {[%emt 0:00:00]} 64. Kg2 {[%emt 0:01:04]} Nf4+ {[%emt 0:00:00]} 65. Kh2 {[%emt 0:00:07]} Kd5 {[%emt 0:00:00]} 66. Kh1 {[%emt 0:00:15]} Kd4 {[%emt 0:00:00]} 67. Kh2 {[%emt 0:00:14]} Ke3 {[%emt 0:00:00]} 68. Kh1 {[%emt 0:00:54]} Kxf3 {[%emt 0:00:00] KN-KPP} 69. Kg1 {[%emt 0:00:29]} e4 {[%emt 0:00:00]} 70. Kh2 {[%emt 0:00:00]} Kf2 {[%emt 0:00:00]} 71. Kh1 {[%emt 0:00:14]} e3 {[%emt 0:00:00]} 72. Kh2 {[%emt 0:00:04]} e2 {[%emt 0:00:00]} 73. Kh1 {[%emt 0:00:09]} e1=Q+ {[%emt 0:00:00]} 74. Kh2 {[%emt 0:00:04]} Qg1# {[%emt 0:00:00] Weighted Error Value: White=0.39/Black=0.17 (very precise)} 0-1

[Event "44th Chess Olympiad Women 2022"]
[Site "Chennai"]
[Date "2022.07.29"]
[Round "1.37"]
[White "Ali, Amy"]
[Black "Trippold, Denise"]
[Result "0-1"]
[ECO "E06"]
[WhiteElo "1361"]
[BlackElo "2151"]
[Annotator "TA"]
[PlyCount "72"]
[EventDate "2022.07.29"]
[EventType "team-tourn"]
[EventCountry "IND"]
[SourceTitle "playchess.com"]
[Source "ChessBase"]
[SourceQuality "1"]
[WhiteTeam "TTO"]
[BlackTeam "Austria"]
[BlackTeamCountry "AUT"]
[TimeControl "40/5400+30:1800+30"]

{[%evp 13,72,14,30,0,0,-6,6,-101,-103,-102,-95,-103,-115,-145,-83,-85,-76,-100,-92,-114,-91,-99,-98,-154,-159,-145,-165,-243,-243,-252,-240,-266,-264,-244,-257,-275,-274,-329,-336,-356,-365,-358,-360,-408,-404,-443,-435,-437,-423,-451,-450,-446,-436,-450,-458,-518,-545,-586,-587,-663,-660]} 1. d4 {[%emt 0:00:04]} Nf6 {[%emt 0:00:07]} 2. c4 {[%emt 0:00:05]} e6 {[%emt 0:00:09]} 3. g3 {[%emt 0:00:10]} d5 {[%emt 0:00:51]} 4. Bg2 {[%emt 0:00:28]} Be7 {[%emt 0:00:34]} 5. Nf3 {[%emt 0:00:27]} O-O {[%emt 0:00:36]} 6. O-O {[%emt 0:00:48]} c6 {[%emt 0:00:21]} 7. Nc3 {[%emt 0:00:27]} b6 {[%emt 0:02:43]} 8. Qc2 {[%emt 0:02:07] E06: Closed Catalan: Early deviations.} Ba6 $1 {[%emt 0:08:16][%mdl 4] outshines the older 8...Bb7.} 9. Ne5 {[%emt 0:13:26]} Nfd7 {[%emt 0:09:33] [#]} 10. Bf4 $146 {[%emt 0:20:53] [#]} (10. cxd5 $11 cxd5 11. Nf3) ({Predecessor:} 10. cxd5 cxd5 11. Rd1 Nxe5 12. dxe5 Nd7 13. e4 d4 14. Rxd4 Qc7 15. Bf4 Rfd8 16. Rad1 {1-0 (55) Cori,J (2636)-Fernandez,F (2424) Sitges 2017}) 10... Nxe5 $1 $17 {[%emt 0:01:24]} 11. Bxe5 {[%emt 0:02:28]} Bxc4 {[%emt 0:02:27]} 12. Rfe1 {[%emt 0:12:27]} Nd7 {[%emt 0:09:28]} 13. Bf4 {[%emt 0:03:20]} Ba6 {[%emt 0:03:05]} (13... c5 $142 14. dxc5 Bxc5) 14. e4 {[%emt 0:05:11][%cal Re4d5]} Nf6 {[%emt 0:09:48]} 15. e5 {[%emt 0:05:19]} Nd7 {[%emt 0:00:17][%cal Bf6d7,Bd7b8,Bb8c6][%mdl 32]} 16. a3 {[%emt 0:03:12]} c5 {[%emt 0:02:00]} 17. Rad1 {[%emt 0:04:35]} Rc8 {[%emt 0:14:31]} 18. Qa4 {[%emt 0:06:28]} (18. dxc5 $142 g5 19. Bc1) 18... Nb8 {[%emt 0:01:25]} 19. dxc5 {[%emt 0:05:48]} bxc5 {[%emt 0:03:37]} ({Not} 19... Bxc5 20. Ne4 $17) 20. Bf1 {[%emt 0:01:14]} (20. Ne4 {was the only defense.}) 20... Bxf1 $19 {[%emt 0:01:04]} 21. Kxf1 {[%emt 0:01:42]} Qb6 {[%emt 0:04:53]} 22. Qb5 {[%emt 0:03:38]} Qxb5+ {[%emt 0:01:16]} 23. Nxb5 {[%emt 0:00:06]} Nc6 {[%emt 0:00:45] And now ...Rb8 would win.} 24. Nd6 {[%emt 0:04:02]} Rb8 {[%emt 0:04:51]} 25. Bc1 {[%emt 0:02:39] [#]} Nxe5 $1 {[%emt 0:05:10][%mdl 512]} 26. Rxe5 {[%emt 0:00:17]} (26. Nf5 Bf6) 26... Bxd6 {[%emt 0:00:04]} 27. Re2 {[%emt 0:00:34]} Rb3 {[%emt 0:01:48]} 28. Re3 {[%emt 0:01:47]} Rfb8 {[%emt 0:00:28]} 29. Rdd3 {[%emt 0:00:38]} Rxd3 {[%emt 0:00:50] Black is clearly winning.} 30. Rxd3 {[%emt 0:00:06][%mdl 4096] Endgame KRB-KRB} c4 {[%emt 0:00:57]} 31. Rc3 {[%emt 0:00:42]} Be5 {[%emt 0:00:32]} 32. Rc2 {[%emt 0:00:26]} Kf8 {[%emt 0:02:56]} 33. Ke2 {[%emt 0:00:46]} Rb3 {[%emt 0:01:29]} 34. h3 {[%emt 0:00:36]} Ke7 {[%emt 0:00:27]} 35. Kd2 {[%emt 0:00:31]} Kd6 {[%emt 0:00:19]} 36. Ke2 {[%emt 0:00:22]} Kc5 {[%emt 0:00:22] Weighted Error Value: White=0.33/Black=0.04 (flawless)} 0-1

[Event "44th Chess Olympiad Women 2022"]
[Site "Chennai"]
[Date "2022.07.29"]
[Round "1.38"]
[White "Zahedifar, Anahita"]
[Black "Saraci, Nita"]
[Result "1-0"]
[ECO "D20"]
[WhiteElo "2160"]
[BlackElo "1555"]
[Annotator "TA"]
[PlyCount "95"]
[EventDate "2022.07.29"]
[EventType "team-tourn"]
[EventCountry "IND"]
[SourceTitle "playchess.com"]
[Source "ChessBase"]
[SourceQuality "1"]
[WhiteTeam "Iran"]
[BlackTeam "Kosovo"]
[WhiteTeamCountry "IRI"]
[BlackTeamCountry "KOS"]
[TimeControl "40/5400+30:1800+30"]

{[%evp 12,95,96,58,62,59,115,114,133,83,114,101,97,65,154,147,143,79,135,143,162,127,200,197,402,406,374,381,422,414,420,420,416,415,400,356,343,320,308,315,390,341,369,370,408,366,333,264,255,201,246,239,330,324,307,70,399,404,404,404,403,391,699,692,692,715,709,701,2119,2050,1682,1707,5931,5716,29976,29977,29977,29978,29986,29987,29987,29988,29989,29989,29989,29990]} 1. d4 {[%emt 0:00:05]} d5 {[%emt 0:00:46]} 2. c4 {[%emt 0:00:05]} Nc6 {[%emt 0:04:28]} 3. cxd5 {[%emt 0:02:20]} Qxd5 {[%emt 0:00:29]} 4. e3 {[%emt 0:00:44]} Nf6 {[%emt 0:00:57]} 5. Nc3 {[%emt 0:05:32]} Qd8 {[%emt 0:06:38]} 6. Nf3 {[%emt 0:02:15]} e6 {[%emt 0:01:30]} 7. Bc4 {[%emt 0:03:09]} Bb4 {[%emt 0:04:52] D20: Queen's Gambit Accepted: 3 e3 and 3 e4.} 8. O-O {[%emt 0:01:49]} Bxc3 {[%emt 0:04:50]} (8... O-O $14) 9. bxc3 $16 {[%emt 0:00:04]} O-O {[%emt 0:04:25] White is better.} 10. Qc2 {[%emt 0:01:44]} ({Better is} 10. Qe2) 10... Ne7 {[%emt 0:03:21]} 11. e4 {[%emt 0:07:49]} Ng6 {[%emt 0:03:56] [#]} 12. Rd1 $146 {[%emt 0:04:56]} ({Predecessor:} 12. Bd3 b6 13. e5 Nd5 14. Be4 Rb8 15. c4 Nde7 16. Rd1 Bb7 17. h4 Bxe4 18. Qxe4 Nf5 19. Bg5 {1-0 (32) Sykora,J (2344)-Ptacek,J (1761) ICCF email 2016}) 12... c6 {[%emt 0:00:32]} (12... b6 $14) 13. a4 {[%emt 0:03:05]} Qc7 {[%emt 0:03:05]} 14. Bg5 {[%emt 0:01:45]} (14. Ba3 $142) 14... Nh5 {[%emt 0:04:37]} ({Black should try} 14... e5) 15. e5 {[%emt 0:03:14] White is more active.} c5 {[%emt 0:05:46]} 16. Rac1 {[%emt 0:05:04]} b6 {[%emt 0:00:39] [#]} (16... Nhf4 $16 {is a better defense.}) 17. Qe4 $1 $18 {[%emt 0:01:30]} Bb7 $2 {[%emt 0:02:11]} (17... Qb7 18. d5 (18. Qg4 Nhf4 $16) 18... f6) 18. Qg4 {[%emt 0:00:28]} Bxf3 {[%emt 0:09:24]} 19. gxf3 {[%emt 0:02:45]} ({Don't take} 19. Qxf3 h6 20. Bd2 (20. Qxh5 hxg5 21. Bd3 Rac8 $16) 20... Nxe5 21. dxe5 Qxe5 $18) 19... h6 {[%emt 0:07:09]} 20. Be3 {[%emt 0:03:16][%cal Bg5e3,Be3d4,Bd4e5][%mdl 32]} ({Weaker is} 20. Qxh5 hxg5 21. Qxg5 Qd8 $14) 20... cxd4 {[%emt 0:03:49]} 21. cxd4 {[%emt 0:00:14]} Nxe5 {[%emt 0:04:30]} 22. dxe5 {[%emt 0:00:23]} Qxe5 {[%emt 0:00:18]} 23. Bd4 {[%emt 0:01:11]} Qg5 {[%emt 0:01:37]} 24. h4 {[%emt 0:01:41][%cal Bh2h4,Bh4h5][%mdl 32]} Qxg4+ {[%emt 0:01:33]} 25. fxg4 {[%emt 0:00:00]} Nf4 {[%emt 0:00:16]} 26. Be5 {[%emt 0:00:39]} Ng6 {[%emt 0:00:18]} 27. Bg3 {[%emt 0:01:04]} Rac8 {[%emt 0:00:17]} 28. h5 {[%emt 0:00:09]} Ne7 {[%emt 0:00:15]} 29. Bd6 {[%emt 0:00:15]} Rfd8 {[%emt 0:01:34]} 30. f3 {[%emt 0:02:21]} Kh8 {[%emt 0:01:31]} 31. Kf2 {[%emt 0:01:40]} Ng8 {[%emt 0:00:15]} 32. Rd4 {[%emt 0:01:13]} Nf6 {[%emt 0:00:51]} 33. Rcd1 $2 {[%emt 0:00:33]} (33. Be5 $18) 33... Ne8 $2 {[%emt 0:03:23][%mdl 8192] Black cannot hold the game after this.} (33... Rxd6 $1 $14 34. Rxd6 Rxc4) 34. Bf4 {[%emt 0:01:34]} Rxd4 {[%emt 0:00:18]} 35. Rxd4 {[%emt 0:00:01] [#] Ba6 is the strong threat.} Nf6 {[%emt 0:02:42]} 36. Be5 {[%emt 0:01:02]} Ng8 $2 {[%emt 0:01:37]} (36... Rc5 37. Bf4 Rc8) 37. Ba6 {[%emt 0:01:00]} Rc2+ {[%emt 0:01:36]} 38. Kg3 {[%emt 0:00:09]} Rc5 {[%emt 0:00:17]} 39. Bd6 {[%emt 0:00:18]} Rd5 {[%emt 0:02:56]} 40. Rxd5 {[%emt 0:00:23]} exd5 {[%emt 0:00:05]} 41. Bb8 {[%emt 0:30:10]} Nf6 {[%emt 0:32:31]} 42. Bxa7 {[%emt 0:00:09]} Nd7 {[%emt 0:03:10]} 43. Bb5 {[%emt 0:00:09] White mates.} Nc5 {[%emt 0:02:37]} 44. Bxb6 {[%emt 0:00:10]} Nb7 {[%emt 0:01:31]} 45. Bc6 {[%emt 0:00:13][%csl LRb7,LRd5]} Nd6 {[%emt 0:02:40]} 46. a5 {[%emt 0:00:15][%cal Ba4a5,Ba5a6][%mdl 32]} Kg8 {[%emt 0:00:20]} 47. a6 {[%emt 0:00:11]} Nc8 {[%emt 0:00:00]} 48. Bd4 {[%emt 0:00:00] Weighted Error Value: White=0.31/Black=0.65} 1-0

[Event "44th Chess Olympiad Women 2022"]
[Site "Chennai"]
[Date "2022.07.29"]
[Round "1.38"]
[White "Masoumi, Sahar"]
[Black "Saraci, Ndriqona"]
[Result "1-0"]
[ECO "B22"]
[WhiteElo "1956"]
[BlackElo "1425"]
[Annotator "TA"]
[PlyCount "45"]
[EventDate "2022.07.29"]
[EventType "team-tourn"]
[EventCountry "IND"]
[SourceTitle "playchess.com"]
[Source "ChessBase"]
[SourceQuality "1"]
[WhiteTeam "Iran"]
[BlackTeam "Kosovo"]
[WhiteTeamCountry "IRI"]
[BlackTeamCountry "KOS"]
[TimeControl "40/5400+30:1800+30"]

{[%evp 9,45,78,76,79,115,129,133,81,101,94,103,86,77,81,115,119,192,189,524,497,1077,1004,1070,1060,1047,1028,1330,1323,1443,1442,1417,1377,1718,1762,1907,1904,1831,1797]} 1. e4 {[%emt 0:00:07]} c5 {[%emt 0:00:35]} 2. c3 {[%emt 0:00:09]} Qc7 {[%emt 0:01:54]} 3. d4 {[%emt 0:01:32]} cxd4 {[%emt 0:01:20]} 4. cxd4 {[%emt 0:00:13]} e6 {[%emt 0:01:30]} 5. Nc3 {[%emt 0:00:44]} Bb4 {[%emt 0:01:35]} 6. Bd2 {[%emt 0:01:37] And now Nb5 would win. B22: Sicilian: 2 c3.} a6 {[%emt 0:04:04] [#] Against Nb5} 7. Rc1 $146 {[%emt 0:01:12]} ({Predecessor:} 7. Nf3 d6 8. Bd3 Ne7 9. O-O Qd8 10. Rc1 Bd7 11. Qe2 O-O 12. e5 Nbc6 13. Bxh7+ Kxh7 {1-0 (20) Ramirez Maillo,J (1674)-Schlittermann,W (1760) Las Palmas 2013}) 7... Qd8 {[%emt 0:00:53]} 8. Bd3 {[%emt 0:04:35]} ({Better is} 8. Qg4 Kf8 9. a3) 8... d5 {[%emt 0:01:33]} 9. e5 {[%emt 0:02:35]} Nc6 {[%emt 0:01:13]} 10. Nf3 {[%emt 0:04:43][%cal Bg1f3,Bf3g5,Bg5h7,Bh7f6][%mdl 32]} Nge7 {[%emt 0:05:48]} 11. O-O {[%emt 0:00:23]} Na5 {[%emt 0:02:49]} 12. Ng5 {[%emt 0:12:11] White is more active.} g6 {[%emt 0:05:46] [#] Inhibits Qh5.} (12... h6 $16) 13. Qf3 $1 $36 {[%emt 0:02:35][%mdl 2048] White has strong initiative.} O-O {[%emt 0:06:34]} (13... Nf5 14. g4 Nh6) 14. Nxh7 {[%emt 0:07:36] White is clearly winning.} Nf5 {[%emt 0:06:54]} (14... Kxh7 $142 15. Bg5 (15. a3 Ng8 $16) 15... f5 16. exf6 Kg8) 15. Nf6+ {[%emt 0:03:36]} Kg7 {[%emt 0:01:48]} 16. Bxf5 {[%emt 0:00:14][%cal Od2h6] Bh6+! would kill now.} Rh8 {[%emt 0:03:12] Against Bh6+} 17. Bd3 {[%emt 0:02:35]} Nc4 {[%emt 0:00:28]} 18. Bg5 {[%emt 0:01:53]} Be7 {[%emt 0:01:28]} 19. Bxc4 {[%emt 0:00:32]} dxc4 {[%emt 0:00:19]} 20. d5 {[%emt 0:00:18]} exd5 {[%emt 0:02:07]} 21. Ncxd5 {[%emt 0:00:10]} Be6 {[%emt 0:00:47]} 22. Nxe7 {[%emt 0:00:39]} Qxe7 {[%emt 0:00:28] [#]} 23. Nh5+ $1 {[%emt 0:00:10] Weighted Error Value: White=0.10 (very precise) /Black=0.64} 1-0

[Event "44th Chess Olympiad Women 2022"]
[Site "Chennai"]
[Date "2022.07.29"]
[Round "1.38"]
[White "Saraci, Rinesa"]
[Black "Mahdian, Anousha"]
[Result "0-1"]
[ECO "B15"]
[WhiteElo "1494"]
[BlackElo "2161"]
[Annotator "TA"]
[PlyCount "69"]
[EventDate "2022.07.29"]
[EventType "team-tourn"]
[EventCountry "IND"]
[SourceTitle "playchess.com"]
[Source "ChessBase"]
[SourceQuality "1"]
[WhiteTeam "Kosovo"]
[BlackTeam "Iran"]
[WhiteTeamCountry "KOS"]
[BlackTeamCountry "IRI"]
[TimeControl "40/5400+30:1800+30"]

{[%evp 10,69,25,0,31,22,25,0,16,18,16,-7,-11,-15,0,-32,-42,-46,-52,-190,-174,-196,-191,-182,-186,-435,-432,-547,-541,-720,-687,-689,-660,-709,-607,-712,-712,-668,-551,-545,-549,-528,-528,-487,-437,-414,-377,-565,-554,-599,-591,-618,-577,-827,-820,-774,-700,-816,-798,-875,-857,-817]} 1. e4 {[%emt 0:00:06]} c6 {[%emt 0:00:05]} 2. d4 {[%emt 0:01:05]} d5 {[%emt 0:00:09]} 3. Nc3 {[%emt 0:00:58]} g6 {[%emt 0:00:50]} 4. Nf3 {[%emt 0:01:19]} Bg7 {[%emt 0:00:04]} 5. exd5 {[%emt 0:05:41]} cxd5 {[%emt 0:00:44]} 6. Bf4 {[%emt 0:01:09]} a6 {[%emt 0:05:07] Inhibits Nb5. B15: Caro-Kann: 3 Nc3: 3...g6 and 3...dxe4 4 Nxe4 Nf6 5 Nxf6+ exf6.} 7. h3 {[%emt 0:03:28]} Nf6 {[%emt 0:04:09]} 8. Be2 {[%emt 0:02:53]} O-O {[%emt 0:02:24] The position is equal.} 9. O-O {[%emt 0:02:08]} Nc6 {[%emt 0:04:33]} 10. Re1 {[%emt 0:06:52]} Ne4 {[%emt 0:06:18]} 11. Bf1 {[%emt 0:07:47] [#]} f5 $146 {[%emt 0:10:12]} ({Predecessor:} 11... Nxc3 12. bxc3 b5 13. Ne5 Bb7 14. Nd3 Qa5 15. Qd2 Rfc8 16. Nc5 Ra7 17. a4 b4 18. cxb4 Qxb4 19. Qxb4 Nxb4 {1-0 (44) Horn,E (2061)-Johnsen,S (2067) Skelleftea 2000}) 12. Rc1 {[%emt 0:12:49]} e6 {[%emt 0:02:25]} 13. Ne5 {[%emt 0:10:36]} Qb6 {[%emt 0:14:54]} 14. f3 {[%emt 0:08:31] Loses the game.} (14. Nxe4 $15 fxe4 15. Be3) 14... Nxe5 $19 {[%emt 0:02:29]} (14... Qxb2 15. Na4 (15. fxe4 Qxc3 16. exd5 exd5 $15) 15... Qa3 16. c4 $16) ({Not} 14... Nxd4 15. Kh2 $17) 15. fxe4 {[%emt 0:04:42]} fxe4 {[%emt 0:00:42]} 16. Be3 {[%emt 0:06:15]} Nc6 {[%emt 0:03:22][%cal Rg7d4,Be5c6,Bc6d4,Bd4f5,Bf5g3][%mdl 32]} ({Inferior is} 16... Qxb2 17. Na4 Rxf1+ 18. Rxf1 $17) 17. Nxe4 $2 {[%emt 0:11:53]} (17. Na4 Qa5 18. c4) 17... dxe4 {[%emt 0:01:46]} 18. d5 {[%emt 0:04:27]} Bd4 {[%emt 0:00:17]} 19. Bxd4 {[%emt 0:01:32]} Nxd4 {[%emt 0:00:15]} 20. Kh1 {[%emt 0:00:54]} Nf5 {[%emt 0:00:14] [#] ...Ng3+ is the strong threat.} 21. c4 {[%emt 0:04:16]} Ng3+ {[%emt 0:01:38]} 22. Kh2 {[%emt 0:00:27]} Qd6 {[%emt 0:00:16]} 23. Kg1 {[%emt 0:00:39]} exd5 {[%emt 0:02:35]} 24. Qxd5+ {[%emt 0:01:00]} Qxd5 {[%emt 0:00:05]} 25. cxd5 {[%emt 0:00:02]} Nxf1 {[%emt 0:00:10]} 26. Rxf1 {[%emt 0:00:05]} Rxf1+ {[%emt 0:00:21]} 27. Kxf1 {[%emt 0:00:32][%mdl 4096] Endgame KRB-KR} Bd7 {[%emt 0:00:06]} 28. Rc7 {[%emt 0:00:30]} (28. Kf2 $142) 28... Bb5+ {[%emt 0:00:05] Black is clearly winning.} 29. Kf2 {[%emt 0:00:28]} Rd8 {[%emt 0:00:17]} 30. Ke3 {[%emt 0:01:22]} Rxd5 {[%emt 0:00:15]} 31. Kxe4 {[%emt 0:00:10]} Bc6 {[%emt 0:00:30] [#] Hoping for ...Rd7+.} 32. Ke3 {[%emt 0:01:03]} Re5+ {[%emt 0:00:30]} 33. Kf4 {[%emt 0:00:42]} Rf5+ {[%emt 0:00:07]} 34. Ke3 {[%emt 0:00:28]} Bxg2 {[%emt 0:00:11]} 35. Kd4 {[%emt 0:00:09] Weighted Error Value: White=0.66/Black=0.14 (very precise)} 0-1